[Event "2026 European Womens Championship"]
[Site "Batumi, GE"]
[Date "2026.06.01"]
[Round "7"]
[White "Buksa, Nataliya"]
[Black "Zherebtsova, Alexandra"]
[Result "0-1"]
[Board "55"]
[TimeControl "5400+30"]
[WhiteFideId "14123622"]
[BlackFideId "24129518"]
[WhiteElo "2392"]
[BlackElo "2242"]
[WhiteTitle "IM"]
[BlackTitle "FM"]
[WhiteClock "0:00:50"]
[BlackClock "0:01:14"]
[Variant "Standard"]

1. e4 {[%clk 1:27:08]}  c5 {[%clk 1:30:40]} 2. Nf3 {[%clk 1:27:31]}  Nc6 {[%clk 1:30:54]} 3. Nc3 {[%clk 1:27:56]}  e6 {[%clk 1:17:49]}
4. d4 {[%clk 1:27:52]}  cxd4 {[%clk 1:15:38]} 5. Nxd4 {[%clk 1:28:18]}  Qc7 {[%clk 1:15:41]} 6. Be2 {[%clk 1:26:34]}  a6 {[%clk 1:15:36]}
7. O-O {[%clk 1:25:55]}  b5 {[%clk 1:13:47]} 8. Nxc6 {[%clk 1:19:49]}  dxc6 {[%clk 1:12:51]} 9. Be3 {[%clk 1:14:59]}  Bb7 {[%clk 1:08:41]}
10. f4 {[%clk 1:05:26]}  c5 {[%clk 0:50:43]} 11. Bf3 {[%clk 0:50:11]}  b4 {[%clk 0:33:48]} 12. Nb1 {[%clk 0:48:59]}  Nf6 {[%clk 0:33:43]}
13. Nd2 {[%clk 0:49:25]}  Be7 {[%clk 0:31:17]} 14. Qe2 {[%clk 0:42:15]}  O-O {[%clk 0:30:32]} 15. g4 {[%clk 0:42:08]}  a5 {[%clk 0:27:52]}
16. b3 {[%clk 0:30:40]}  Ba6 {[%clk 0:26:12]} 17. Nc4 {[%clk 0:31:06]}  Rad8 {[%clk 0:23:51]} 18. g5 {[%clk 0:29:30]}  Nd7 {[%clk 0:23:43]}
19. Bg2 {[%clk 0:28:25]}  Nb6 {[%clk 0:22:27]} 20. Rf3 {[%clk 0:27:33]}  Nxc4 {[%clk 0:16:26]} 21. bxc4 {[%clk 0:28:00]}  f6 {[%clk 0:16:18]}
22. gxf6 {[%clk 0:18:17]}  Rxf6 {[%clk 0:14:16]} 23. Re1 {[%clk 0:16:48]}  Rf7 {[%clk 0:12:50]} 24. Rh3 {[%clk 0:16:36]}  Bf8 {[%clk 0:10:44]}
25. Rf1 {[%clk 0:14:14]}  Bc8 {[%clk 0:08:12]} 26. Rg3 {[%clk 0:09:47]}  Be7 {[%clk 0:03:06]} 27. Qh5 {[%clk 0:05:52]}  Ba6 {[%clk 0:02:47]}
28. Qe2 {[%clk 0:04:57]}  Bb7 {[%clk 0:02:56]} 29. Qg4 {[%clk 0:04:39]}  Qd7 {[%clk 0:01:55]} 30. Bf3 {[%clk 0:03:54]}  Bf6 {[%clk 0:01:42]}
31. Kh1 {[%clk 0:00:53]}  Bd4 {[%clk 0:01:51]} 32. Bc1 {[%clk 0:01:20]}  Rdf8 {[%clk 0:01:26]} 33. Rh3 {[%clk 0:01:18]}  Rf6 {[%clk 0:00:38]}
34. e5 {[%clk 0:00:44]}  Rg6 {[%clk 0:00:41]} 35. Qh4 {[%clk 0:00:40]}  Bxf3+ {[%clk 0:00:47]} 36. Rhxf3 {[%clk 0:01:07]}  Qc6 {[%clk 0:00:54]}
37. Qh3 {[%clk 0:01:13]}  Qe4 {[%clk 0:00:44]} 38. Bd2 {[%clk 0:01:08]}  Rf5 {[%clk 0:01:01]} 39. Re1 {[%clk 0:00:50]}  Qxe1+ {[%clk 0:01:14]} 0-1

[Event "2026 European Womens Championship"]
[Site "Batumi, GE"]
[Date "2026.06.01"]
[Round "7"]
[White "Aydin, Gulenay"]
[Black "Roebers, Eline"]
[Result "0-1"]
[Board "56"]
[TimeControl "5400+30"]
[WhiteFideId "34557431"]
[BlackFideId "1058401"]
[WhiteElo "2204"]
[BlackElo "2389"]
[WhiteTitle "WIM"]
[BlackTitle "IM"]
[WhiteClock "0:02:24"]
[BlackClock "0:00:31"]
[Variant "Standard"]

1. e4 {[%clk 1:28:08]}  c5 {[%clk 1:30:49]} 2. Nc3 {[%clk 1:27:33]}  d6 {[%clk 1:31:00]} 3. Bb5+ {[%clk 1:27:47]}  Nd7 {[%clk 1:30:12]}
4. d4 {[%clk 1:27:50]}  cxd4 {[%clk 1:24:27]} 5. Qxd4 {[%clk 1:28:17]}  e6 {[%clk 1:24:27]} 6. Nge2 {[%clk 1:23:33]}  a6 {[%clk 1:23:12]}
7. Bxd7+ {[%clk 1:23:55]}  Bxd7 {[%clk 1:23:39]} 8. O-O {[%clk 1:10:30]}  Rc8 {[%clk 1:18:18]} 9. a4 {[%clk 1:08:43]}  Qa5 {[%clk 1:12:02]}
10. Qd3 {[%clk 0:59:14]}  h6 {[%clk 1:06:30]} 11. Bf4 {[%clk 0:53:00]}  Qc7 {[%clk 1:03:34]} 12. Rfd1 {[%clk 0:37:07]}  e5 {[%clk 1:02:13]}
13. Bd2 {[%clk 0:30:19]}  Nf6 {[%clk 1:01:50]} 14. Ng3 {[%clk 0:28:00]}  Bg4 {[%clk 0:56:48]} 15. Re1 {[%clk 0:22:15]}  Qc4 {[%clk 0:53:35]}
16. Qe3 {[%clk 0:20:47]}  Be7 {[%clk 0:49:42]} 17. h3 {[%clk 0:20:15]}  Be6 {[%clk 0:49:28]} 18. Qf3 {[%clk 0:20:39]}  g6 {[%clk 0:45:09]}
19. a5 {[%clk 0:19:39]}  Kf8 {[%clk 0:42:26]} 20. Nf1 {[%clk 0:20:02]}  Kg7 {[%clk 0:42:04]} 21. Ne3 {[%clk 0:20:22]}  Qc6 {[%clk 0:40:33]}
22. Ncd5 {[%clk 0:14:59]}  Bxd5 {[%clk 0:37:29]} 23. exd5 {[%clk 0:15:27]}  Qd7 {[%clk 0:35:11]} 24. c4 {[%clk 0:14:15]}  Nh7 {[%clk 0:32:32]}
25. b4 {[%clk 0:13:39]}  f5 {[%clk 0:27:33]} 26. Qe2 {[%clk 0:13:41]}  f4 {[%clk 0:26:19]} 27. Nd1 {[%clk 0:11:17]}  Bf6 {[%clk 0:22:21]}
28. Nc3 {[%clk 0:10:16]}  Ng5 {[%clk 0:21:30]} 29. Ne4 {[%clk 0:08:07]}  f3 {[%clk 0:19:57]} 30. Bxg5 {[%clk 0:04:14]}  fxe2 {[%clk 0:19:31]}
31. Bxf6+ {[%clk 0:04:42]}  Kh7 {[%clk 0:14:02]} 32. Bxh8 {[%clk 0:05:09]}  Kxh8 {[%clk 0:14:29]} 33. Rac1 {[%clk 0:04:50]}  Qa4 {[%clk 0:11:22]}
34. Nxd6 {[%clk 0:04:54]}  Rc7 {[%clk 0:11:45]} 35. Rb1 {[%clk 0:02:16]}  Qc2 {[%clk 0:07:51]} 36. c5 {[%clk 0:00:55]}  g5 {[%clk 0:07:41]}
37. f3 {[%clk 0:01:08]}  h5 {[%clk 0:07:32]} 38. Kf2 {[%clk 0:01:12]}  g4 {[%clk 0:06:23]} 39. hxg4 {[%clk 0:01:40]}  hxg4 {[%clk 0:06:46]}
40. Rbc1 {[%clk 0:00:39]}  Qd3 {[%clk 0:03:48]} 41. Rc4 {[%clk 0:24:17]}  gxf3 {[%clk 0:24:25]} 42. Rh4+ {[%clk 0:09:06]}  Kg8 {[%clk 0:24:21]}
43. gxf3 {[%clk 0:06:48]}  Rg7 {[%clk 0:22:53]} 44. Rxe2 {[%clk 0:06:49]}  Qd1 {[%clk 0:18:51]} 45. Re1 {[%clk 0:06:47]}  Qxd5 {[%clk 0:16:51]}
46. Re2 {[%clk 0:01:23]}  Qd1 {[%clk 0:15:14]} 47. Re1 {[%clk 0:01:48]}  Qd5 {[%clk 0:13:28]} 48. Ree4 {[%clk 0:01:50]}  Qd2+ {[%clk 0:11:59]}
49. Re2 {[%clk 0:02:18]}  Rg2+ {[%clk 0:12:23]} 50. Kxg2 {[%clk 0:02:46]}  Qxe2+ {[%clk 0:12:49]} 51. Kg3 {[%clk 0:03:11]}  Qe1+ {[%clk 0:12:29]}
52. Kh3 {[%clk 0:02:55]}  Kg7 {[%clk 0:09:57]} 53. Re4 {[%clk 0:00:37]}  Qh1+ {[%clk 0:09:00]} 54. Kg3 {[%clk 0:00:48]}  Qg1+ {[%clk 0:09:17]}
55. Kh3 {[%clk 0:01:15]}  Qf2 {[%clk 0:07:52]} 56. Rg4+ {[%clk 0:01:36]}  Kf8 {[%clk 0:08:14]} 57. Rg3 {[%clk 0:01:51]}  Qe2 {[%clk 0:05:46]}
58. Nxb7 {[%clk 0:00:46]}  Qb5 {[%clk 0:05:57]} 59. Nd6 {[%clk 0:00:39]}  Qxb4 {[%clk 0:06:08]} 60. Ne4 {[%clk 0:00:55]}  Qxa5 {[%clk 0:05:48]}
61. Rg6 {[%clk 0:00:53]}  Qe1 {[%clk 0:04:04]} 62. Kg4 {[%clk 0:01:03]}  Qe3 {[%clk 0:03:20]} 63. Rf6+ {[%clk 0:00:47]}  Ke7 {[%clk 0:03:25]}
64. c6 {[%clk 0:00:43]}  a5 {[%clk 0:02:22]} 65. Kf5 {[%clk 0:00:47]}  a4 {[%clk 0:01:53]} 66. Kxe5 {[%clk 0:01:01]}  a3 {[%clk 0:01:41]}
67. Rg6 {[%clk 0:00:37]}  a2 {[%clk 0:01:46]} 68. Rg7+ {[%clk 0:00:35]}  Kf8 {[%clk 0:02:01]} 69. c7 {[%clk 0:00:31]}  a1=Q+ {[%clk 0:02:24]} 0-1

[Event "2026 European Womens Championship"]
[Site "Batumi, GE"]
[Date "2026.06.01"]
[Round "7"]
[White "Unuk, Laura"]
[Black "Javakhishvili, Lela"]
[Result "1-0"]
[Board "57"]
[TimeControl "5400+30"]
[WhiteFideId "14609215"]
[BlackFideId "13601458"]
[WhiteElo "2289"]
[BlackElo "2442"]
[WhiteTitle "IM"]
[BlackTitle "IM"]
[WhiteClock "0:01:13"]
[BlackClock "0:02:24"]
[Variant "Standard"]

1. c4 {[%clk 1:30:19]}  Nf6 {[%clk 1:26:55]} 2. Nc3 {[%clk 1:29:57]}  e6 {[%clk 1:27:04]} 3. e4 {[%clk 1:29:20]}  c5 {[%clk 1:27:25]}
4. d3 {[%clk 1:24:44]}  Nc6 {[%clk 1:25:46]} 5. Bf4 {[%clk 1:05:06]}  a6 {[%clk 1:18:23]} 6. g3 {[%clk 1:04:34]}  d5 {[%clk 1:13:07]}
7. cxd5 {[%clk 0:43:07]}  exd5 {[%clk 1:13:27]} 8. Bg2 {[%clk 0:43:25]}  Be6 {[%clk 1:07:37]} 9. Nf3 {[%clk 0:33:25]}  h6 {[%clk 0:57:54]}
10. O-O {[%clk 0:32:40]}  d4 {[%clk 0:57:27]} 11. Ne2 {[%clk 0:28:23]}  g5 {[%clk 0:46:27]} 12. Bd2 {[%clk 0:26:44]}  Be7 {[%clk 0:42:38]}
13. Ne1 {[%clk 0:26:13]}  Qb6 {[%clk 0:38:02]} 14. b3 {[%clk 0:23:09]}  Nd7 {[%clk 0:35:11]} 15. f4 {[%clk 0:20:31]}  f6 {[%clk 0:35:30]}
16. Nf3 {[%clk 0:14:58]}  O-O-O {[%clk 0:35:09]} 17. Kh1 {[%clk 0:14:07]}  Rdg8 {[%clk 0:34:52]} 18. Qc1 {[%clk 0:08:07]}  Kb8 {[%clk 0:34:41]}
19. Rb1 {[%clk 0:07:54]}  Qb5 {[%clk 0:24:45]} 20. a4 {[%clk 0:02:12]}  Qb6 {[%clk 0:19:34]} 21. b4 {[%clk 0:01:12]}  cxb4 {[%clk 0:19:13]}
22. a5 {[%clk 0:01:41]}  Qc5 {[%clk 0:16:56]} 23. Qb2 {[%clk 0:02:05]}  Bg4 {[%clk 0:13:51]} 24. Nexd4 {[%clk 0:02:29]}  Nxd4 {[%clk 0:13:20]}
25. Nxd4 {[%clk 0:02:43]}  gxf4 {[%clk 0:13:14]} 26. gxf4 {[%clk 0:01:25]}  Qxa5 {[%clk 0:13:26]} 27. Nc2 {[%clk 0:00:36]}  Be2 {[%clk 0:07:58]}
28. Nxb4 {[%clk 0:01:01]}  Qb5 {[%clk 0:07:48]} 29. Rfe1 {[%clk 0:00:38]}  Rxg2 {[%clk 0:03:42]} 30. Kxg2 {[%clk 0:01:06]}  Rg8+ {[%clk 0:03:59]}
31. Kf2 {[%clk 0:01:34]}  Bh5 {[%clk 0:04:01]} 32. Nd5 {[%clk 0:01:16]}  Bc5+ {[%clk 0:02:37]} 33. Be3 {[%clk 0:01:40]}  Qc6 {[%clk 0:02:31]}
34. d4 {[%clk 0:01:06]}  Ba3 {[%clk 0:02:19]} 35. Qc3 {[%clk 0:01:07]}  Rc8 {[%clk 0:01:41]} 36. Qxc6 {[%clk 0:01:09]}  Rxc6 {[%clk 0:02:09]}
37. Rb3 {[%clk 0:00:33]}  Rc2+ {[%clk 0:02:21]} 38. Kg3 {[%clk 0:01:01]}  Ra2 {[%clk 0:02:24]} 39. Nc3 {[%clk 0:01:13]} 1-0

[Event "2026 European Womens Championship"]
[Site "Batumi, GE"]
[Date "2026.06.01"]
[Round "7"]
[White "Narva, Mai"]
[Black "Arakhamia-Grant, Ketevan"]
[Result "1-0"]
[Board "58"]
[TimeControl "5400+30"]
[WhiteFideId "4500512"]
[BlackFideId "13600168"]
[WhiteElo "2426"]
[BlackElo "2306"]
[WhiteTitle "IM"]
[BlackTitle "GM"]
[WhiteClock "0:06:07"]
[BlackClock "0:00:36"]
[Variant "Standard"]

1. e4 {[%clk 1:29:05]}  c5 {[%clk 1:30:52]} 2. Nf3 {[%clk 1:29:25]}  Nc6 {[%clk 1:31:13]} 3. d4 {[%clk 1:29:37]}  cxd4 {[%clk 1:31:35]}
4. Nxd4 {[%clk 1:30:01]}  e5 {[%clk 1:31:54]} 5. Nb5 {[%clk 1:30:22]}  d6 {[%clk 1:32:18]} 6. c4 {[%clk 1:30:26]}  g6 {[%clk 1:30:56]}
7. N1c3 {[%clk 1:29:45]}  a6 {[%clk 1:31:07]} 8. Na3 {[%clk 1:30:07]}  Bg7 {[%clk 1:26:58]} 9. Bd3 {[%clk 1:29:15]}  Be6 {[%clk 1:23:18]}
10. Be3 {[%clk 1:26:10]}  Nf6 {[%clk 1:21:22]} 11. h3 {[%clk 1:22:08]}  O-O {[%clk 1:20:57]} 12. Nc2 {[%clk 1:12:40]}  Rc8 {[%clk 1:17:47]}
13. Qd2 {[%clk 1:11:18]}  Na5 {[%clk 1:01:30]} 14. b3 {[%clk 1:04:39]}  b5 {[%clk 0:53:34]} 15. cxb5 {[%clk 1:01:58]}  Bxb3 {[%clk 0:42:02]}
16. Nb4 {[%clk 1:00:47]}  Nc4 {[%clk 0:40:35]} 17. Bxc4 {[%clk 0:56:29]}  Bxc4 {[%clk 0:40:51]} 18. bxa6 {[%clk 0:56:06]}  Qa5 {[%clk 0:19:02]}
19. Nbd5 {[%clk 0:54:01]}  Bxd5 {[%clk 0:13:19]} 20. Nxd5 {[%clk 0:54:25]}  Qxd2+ {[%clk 0:08:16]} 21. Bxd2 {[%clk 0:46:42]}  Nxd5 {[%clk 0:06:13]}
22. exd5 {[%clk 0:47:06]}  Ra8 {[%clk 0:06:19]} 23. a4 {[%clk 0:46:05]}  e4 {[%clk 0:04:17]} 24. Rb1 {[%clk 0:42:28]}  Rxa6 {[%clk 0:04:25]}
25. a5 {[%clk 0:42:42]}  Bd4 {[%clk 0:04:26]} 26. Ke2 {[%clk 0:41:55]}  f5 {[%clk 0:04:48]} 27. Rhc1 {[%clk 0:34:37]}  f4 {[%clk 0:02:16]}
28. Rc6 {[%clk 0:30:07]}  Ra7 {[%clk 0:01:07]} 29. Rxd6 {[%clk 0:17:03]}  f3+ {[%clk 0:01:27]} 30. gxf3 {[%clk 0:17:25]}  Rxf3 {[%clk 0:01:40]}
31. Be1 {[%clk 0:17:16]}  Ra3 {[%clk 0:01:39]} 32. Rd8+ {[%clk 0:10:12]}  Kg7 {[%clk 0:01:54]} 33. d6 {[%clk 0:09:15]}  Ra2+ {[%clk 0:01:03]}
34. Kf1 {[%clk 0:03:14]}  Kf7 {[%clk 0:01:27]} 35. Rb4 {[%clk 0:00:45]}  Bf6 {[%clk 0:01:41]} 36. Rc8 {[%clk 0:00:43]}  Ke6 {[%clk 0:01:28]}
37. Rc7 {[%clk 0:00:45]}  Rxc7 {[%clk 0:00:37]} 38. dxc7 {[%clk 0:01:10]}  Kd7 {[%clk 0:00:38]} 39. Rc4 {[%clk 0:00:36]}  Kc8 {[%clk 0:01:03]}
40. Rxe4 {[%clk 0:00:35]}  Kxc7 {[%clk 0:00:58]} 41. Rf4 {[%clk 0:29:29]}  Be5 {[%clk 0:17:06]} 42. Rf7+ {[%clk 0:29:38]}  Kd6 {[%clk 0:17:16]}
43. Rxh7 {[%clk 0:29:18]}  Ke6 {[%clk 0:17:33]} 44. Rb7 {[%clk 0:25:47]}  Bd4 {[%clk 0:17:00]} 45. Rb5 {[%clk 0:25:51]}  Ba7 {[%clk 0:13:36]}
46. Kg2 {[%clk 0:22:08]}  Ra1 {[%clk 0:07:54]} 47. Bc3 {[%clk 0:21:43]}  Rc1 {[%clk 0:07:39]} 48. Re5+ {[%clk 0:19:38]}  Kd6 {[%clk 0:07:11]}
49. Bd2 {[%clk 0:19:50]}  Rc2 {[%clk 0:06:26]} 50. Re2 {[%clk 0:20:02]}  Kd5 {[%clk 0:06:39]} 51. Kf3 {[%clk 0:18:18]}  Ra2 {[%clk 0:06:17]}
52. Bf4 {[%clk 0:15:19]}  Ra3+ {[%clk 0:05:36]} 53. Kg4 {[%clk 0:15:43]}  Bd4 {[%clk 0:05:47]} 54. Bc7 {[%clk 0:15:36]}  Rc3 {[%clk 0:01:13]}
55. Bb6 {[%clk 0:09:37]}  Bxb6 {[%clk 0:00:32]} 56. axb6 {[%clk 0:10:02]}  Rb3 {[%clk 0:00:54]} 57. Kg5 {[%clk 0:10:19]}  Rxb6 {[%clk 0:01:03]}
58. f4 {[%clk 0:10:39]}  Rb4 {[%clk 0:00:54]} 59. h4 {[%clk 0:09:11]}  Kd6 {[%clk 0:01:13]} 60. h5 {[%clk 0:05:22]}  gxh5 {[%clk 0:01:28]}
61. f5 {[%clk 0:05:48]}  h4 {[%clk 0:00:45]} 62. f6 {[%clk 0:06:07]}  Rb5+ {[%clk 0:00:48]} 63. Kg6 {[%clk 0:06:22]}  Rb1 {[%clk 0:00:37]}
64. Rf2 {[%clk 0:05:55]}  Rg1 {[%clk 0:00:36]} 65. Kh7 {[%clk 0:06:07]}  Kd5 {[%clk 0:00:05]} 1-0

[Event "2026 European Womens Championship"]
[Site "Batumi, GE"]
[Date "2026.06.01"]
[Round "7"]
[White "Khotenashvili, Bella"]
[Black "Hrebenshchykova, Yelyzaveta"]
[Result "1-0"]
[Board "59"]
[TimeControl "5400+30"]
[WhiteFideId "13602640"]
[BlackFideId "14159899"]
[WhiteElo "2415"]
[BlackElo "2309"]
[WhiteTitle "GM"]
[BlackTitle "WGM"]
[WhiteClock "0:14:33"]
[BlackClock "0:14:42"]
[Variant "Standard"]

1. d4 {[%clk 1:30:54]}  Nf6 {[%clk 1:30:54]} 2. c4 {[%clk 1:31:10]}  g6 {[%clk 1:30:11]} 3. h4 {[%clk 1:31:15]}  Bg7 {[%clk 1:27:41]}
4. Nc3 {[%clk 1:31:10]}  d6 {[%clk 1:26:31]} 5. e4 {[%clk 1:30:53]}  e5 {[%clk 1:12:02]} 6. dxe5 {[%clk 1:24:11]}  dxe5 {[%clk 1:12:28]}
7. Qxd8+ {[%clk 1:21:11]}  Kxd8 {[%clk 1:12:55]} 8. Nf3 {[%clk 1:16:31]}  Nbd7 {[%clk 0:49:31]} 9. h5 {[%clk 1:12:02]}  c6 {[%clk 0:44:13]}
10. h6 {[%clk 1:03:42]}  Bf8 {[%clk 0:44:39]} 11. Ng5 {[%clk 1:04:07]}  Ke8 {[%clk 0:44:53]} 12. Be2 {[%clk 0:55:27]}  Bd6 {[%clk 0:35:26]}
13. Be3 {[%clk 0:48:13]}  Ke7 {[%clk 0:35:09]} 14. Na4 {[%clk 0:40:58]}  b6 {[%clk 0:26:54]} 15. O-O-O {[%clk 0:33:24]}  Ne8 {[%clk 0:19:36]}
16. c5 {[%clk 0:30:14]}  Bc7 {[%clk 0:16:39]} 17. b4 {[%clk 0:20:50]}  f6 {[%clk 0:15:45]} 18. Nf3 {[%clk 0:19:06]}  b5 {[%clk 0:08:36]}
19. Nc3 {[%clk 0:19:17]}  a5 {[%clk 0:09:04]} 20. a3 {[%clk 0:18:24]}  Nb8 {[%clk 0:07:23]} 21. Ne1 {[%clk 0:13:59]}  Na6 {[%clk 0:06:32]}
22. Nc2 {[%clk 0:14:18]}  Be6 {[%clk 0:05:05]} 23. Kb2 {[%clk 0:14:23]}  Rd8 {[%clk 0:01:37]} 24. g3 {[%clk 0:11:33]}  Rxd1 {[%clk 0:02:01]}
25. Rxd1 {[%clk 0:11:54]}  Bc8 {[%clk 0:00:40]} 26. f4 {[%clk 0:10:29]}  a4 {[%clk 0:00:38]} 27. Ne1 {[%clk 0:07:23]}  Nb8 {[%clk 0:00:47]}
28. Nd3 {[%clk 0:06:06]}  Nd7 {[%clk 0:00:46]} 29. Nf2 {[%clk 0:05:27]}  exf4 {[%clk 0:00:40]} 30. gxf4 {[%clk 0:05:27]}  Nf8 {[%clk 0:01:07]}
31. Nd3 {[%clk 0:04:12]}  Be6 {[%clk 0:01:08]} 32. Bf3 {[%clk 0:04:01]}  Bb3 {[%clk 0:00:35]} 33. Rd2 {[%clk 0:04:01]}  Ne6 {[%clk 0:00:33]}
34. e5 {[%clk 0:04:05]}  Nd8 {[%clk 0:01:00]} 35. Ne2 {[%clk 0:02:28]}  Rf8 {[%clk 0:01:24]} 36. Nd4 {[%clk 0:02:48]}  Bc4 {[%clk 0:00:33]}
37. Nxc6+ {[%clk 0:01:43]}  Nxc6 {[%clk 0:00:59]} 38. Bxc6 {[%clk 0:02:11]}  Ke6 {[%clk 0:00:39]} 39. Bd4 {[%clk 0:01:34]}  g5 {[%clk 0:00:44]}
40. Be4 {[%clk 0:00:51]}  f5 {[%clk 0:00:34]} 41. Bc6 {[%clk 0:24:38]}  Bd8 {[%clk 0:26:35]} 42. Be3 {[%clk 0:23:10]}  g4 {[%clk 0:19:39]}
43. Ne1 {[%clk 0:21:32]}  Nc7 {[%clk 0:16:59]} 44. Rd7 {[%clk 0:19:36]}  Bb3 {[%clk 0:16:31]} 45. Bf2 {[%clk 0:15:37]}  Rg8 {[%clk 0:14:49]}
46. Bg3 {[%clk 0:15:55]}  Rh8 {[%clk 0:14:33]} 47. Ng2 {[%clk 0:14:42]} 1-0

[Event "2026 European Womens Championship"]
[Site "Batumi, GE"]
[Date "2026.06.01"]
[Round "7"]
[White "Wagner, Dinara"]
[Black "Jarocka, Liwia"]
[Result "1/2-1/2"]
[Board "60"]
[TimeControl "5400+30"]
[WhiteFideId "24157570"]
[BlackFideId "21807558"]
[WhiteElo "2408"]
[BlackElo "2288"]
[WhiteTitle "IM"]
[BlackTitle "FM"]
[WhiteClock "0:01:47"]
[BlackClock "0:04:54"]
[Variant "Standard"]

1. d4 {[%clk 1:30:54]}  d6 {[%clk 1:30:44]} 2. Nf3 {[%clk 1:30:58]}  Nf6 {[%clk 1:31:05]} 3. c4 {[%clk 1:31:14]}  g6 {[%clk 1:31:29]}
4. Nc3 {[%clk 1:30:33]}  Bg7 {[%clk 1:31:47]} 5. e4 {[%clk 1:23:53]}  O-O {[%clk 1:32:03]} 6. h3 {[%clk 1:20:27]}  e5 {[%clk 1:30:24]}
7. Bg5 {[%clk 1:17:22]}  exd4 {[%clk 1:26:56]} 8. Nxd4 {[%clk 1:17:47]}  Re8 {[%clk 1:26:59]} 9. Bd3 {[%clk 1:17:05]}  Nxe4 {[%clk 1:23:24]}
10. Nxe4 {[%clk 1:12:28]}  Qxg5 {[%clk 1:23:30]} 11. O-O {[%clk 1:12:55]}  Qd8 {[%clk 1:19:18]} 12. Bc2 {[%clk 1:11:08]}  d5 {[%clk 1:16:59]}
13. cxd5 {[%clk 1:05:07]}  Qxd5 {[%clk 1:17:18]} 14. Re1 {[%clk 1:04:50]}  Kf8 {[%clk 0:49:54]} 15. Nb5 {[%clk 0:42:58]}  Qxd1 {[%clk 0:47:50]}
16. Raxd1 {[%clk 0:43:21]}  Na6 {[%clk 0:47:38]} 17. Nc5 {[%clk 0:43:02]}  Bf5 {[%clk 0:42:52]} 18. Nxa6 {[%clk 0:24:03]}  Bxc2 {[%clk 0:34:06]}
19. Naxc7 {[%clk 0:24:10]}  Bxd1 {[%clk 0:33:56]} 20. Nxe8 {[%clk 0:24:27]}  Ba4 {[%clk 0:33:44]} 21. Nec7 {[%clk 0:20:25]}  Rd8 {[%clk 0:32:46]}
22. b3 {[%clk 0:05:02]}  Bxb5 {[%clk 0:32:51]} 23. Nxb5 {[%clk 0:05:30]}  Rd2 {[%clk 0:21:06]} 24. Kf1 {[%clk 0:05:09]}  a6 {[%clk 0:18:14]}
25. Nc7 {[%clk 0:05:33]}  Bc3 {[%clk 0:18:04]} 26. g4 {[%clk 0:01:21]}  Ba5 {[%clk 0:18:08]} 27. Re8+ {[%clk 0:01:46]}  Kg7 {[%clk 0:18:34]}
28. Rc8 {[%clk 0:02:12]}  Bb6 {[%clk 0:14:49]} 29. g5 {[%clk 0:02:38]}  f5 {[%clk 0:08:08]} 30. f4 {[%clk 0:03:06]}  Rf2+ {[%clk 0:05:04]}
31. Ke1 {[%clk 0:03:33]}  Rxa2 {[%clk 0:04:54]} 32. Nd5 {[%clk 0:03:53]}  Bf2+ {[%clk 0:04:42]} 33. Kf1 {[%clk 0:01:47]}  Bd4 {[%clk 0:04:54]} 1/2-1/2

[Event "2026 European Womens Championship"]
[Site "Batumi, GE"]
[Date "2026.06.01"]
[Round "7"]
[White "Schneider, Jana"]
[Black "Mammadzada, Gunay"]
[Result "1-0"]
[Board "61"]
[TimeControl "5400+30"]
[WhiteFideId "12924997"]
[BlackFideId "13403729"]
[WhiteElo "2283"]
[BlackElo "2374"]
[WhiteTitle "WGM"]
[BlackTitle "IM"]
[WhiteClock "0:20:26"]
[BlackClock "0:01:19"]
[Variant "Standard"]

1. e4 {[%clk 1:30:56]}  c5 {[%clk 1:29:58]} 2. Nf3 {[%clk 1:31:12]}  e6 {[%clk 1:29:57]} 3. d4 {[%clk 1:29:50]}  cxd4 {[%clk 1:30:21]}
4. Nxd4 {[%clk 1:30:15]}  Nf6 {[%clk 1:30:46]} 5. Nc3 {[%clk 1:29:55]}  d6 {[%clk 1:31:07]} 6. g4 {[%clk 1:24:48]}  h6 {[%clk 1:31:25]}
7. Rg1 {[%clk 1:23:46]}  Nc6 {[%clk 1:31:23]} 8. Be3 {[%clk 1:23:02]}  Nxd4 {[%clk 1:29:59]} 9. Qxd4 {[%clk 1:20:45]}  e5 {[%clk 1:22:34]}
10. Bb5+ {[%clk 1:18:44]}  Bd7 {[%clk 1:22:05]} 11. Qd3 {[%clk 1:15:16]}  Bxb5 {[%clk 1:04:29]} 12. Qxb5+ {[%clk 1:12:38]}  Qd7 {[%clk 1:03:31]}
13. O-O-O {[%clk 1:07:41]}  Be7 {[%clk 0:38:13]} 14. f3 {[%clk 1:04:36]}  a6 {[%clk 0:33:17]} 15. Qd3 {[%clk 1:00:49]}  b5 {[%clk 0:29:20]}
16. a3 {[%clk 0:56:48]}  Qc6 {[%clk 0:21:35]} 17. h4 {[%clk 0:55:00]}  Qc4 {[%clk 0:18:53]} 18. Qd2 {[%clk 0:42:04]}  b4 {[%clk 0:17:48]}
19. axb4 {[%clk 0:41:45]}  Qxb4 {[%clk 0:18:09]} 20. g5 {[%clk 0:38:41]}  hxg5 {[%clk 0:16:14]} 21. hxg5 {[%clk 0:38:57]}  Rb8 {[%clk 0:14:14]}
22. b3 {[%clk 0:37:59]}  Qa3+ {[%clk 0:10:44]} 23. Kb1 {[%clk 0:38:26]}  Nd7 {[%clk 0:11:08]} 24. g6 {[%clk 0:35:53]}  f6 {[%clk 0:05:38]}
25. Rh1 {[%clk 0:31:23]}  Rf8 {[%clk 0:04:56]} 26. Rh7 {[%clk 0:30:44]}  a5 {[%clk 0:04:05]} 27. Rxg7 {[%clk 0:30:02]}  a4 {[%clk 0:04:02]}
28. Nxa4 {[%clk 0:29:15]}  Rb5 {[%clk 0:00:36]} 29. Qc3 {[%clk 0:23:27]}  Kd8 {[%clk 0:00:51]} 30. Qc4 {[%clk 0:23:30]}  Qb4 {[%clk 0:00:41]}
31. Qxb4 {[%clk 0:22:44]}  Rxb4 {[%clk 0:01:09]} 32. Rh1 {[%clk 0:22:09]}  Re8 {[%clk 0:01:19]} 33. Rhh7 {[%clk 0:20:26]} 1-0

[Event "2026 European Womens Championship"]
[Site "Batumi, GE"]
[Date "2026.06.01"]
[Round "7"]
[White "Krasteva, Beloslava"]
[Black "Beydullayeva, Govhar"]
[Result "1/2-1/2"]
[Board "62"]
[TimeControl "5400+30"]
[WhiteFideId "2922029"]
[BlackFideId "13413015"]
[WhiteElo "2285"]
[BlackElo "2368"]
[WhiteTitle "WGM"]
[BlackTitle "WGM"]
[WhiteClock "0:04:17"]
[BlackClock "0:03:22"]
[Variant "Standard"]

1. d4 {[%clk 1:30:31]}  d5 {[%clk 1:30:52]} 2. c4 {[%clk 1:30:50]}  e6 {[%clk 1:31:17]} 3. Nc3 {[%clk 1:31:13]}  Bb4 {[%clk 1:31:34]}
4. e3 {[%clk 1:27:34]}  Nf6 {[%clk 1:31:40]} 5. a3 {[%clk 1:27:56]}  Bxc3+ {[%clk 1:32:03]} 6. bxc3 {[%clk 1:28:20]}  c6 {[%clk 1:32:23]}
7. cxd5 {[%clk 1:25:21]}  cxd5 {[%clk 1:32:39]} 8. a4 {[%clk 1:24:44]}  O-O {[%clk 1:32:45]} 9. Ba3 {[%clk 1:24:59]}  Re8 {[%clk 1:33:10]}
10. Bb5 {[%clk 1:25:25]}  Bd7 {[%clk 1:32:56]} 11. Bd3 {[%clk 1:25:43]}  Qc7 {[%clk 1:31:32]} 12. Qc2 {[%clk 1:13:11]}  Nc6 {[%clk 1:31:07]}
13. Nf3 {[%clk 1:08:14]}  e5 {[%clk 1:31:17]} 14. dxe5 {[%clk 1:07:28]}  Nxe5 {[%clk 1:31:40]} 15. Nxe5 {[%clk 1:07:03]}  Rxe5 {[%clk 1:31:59]}
16. Bb2 {[%clk 0:59:11]}  Rc8 {[%clk 1:25:30]} 17. h3 {[%clk 0:48:41]}  Ne4 {[%clk 1:08:04]} 18. O-O {[%clk 0:36:44]}  Rg5 {[%clk 0:57:22]}
19. f4 {[%clk 0:34:53]}  Rg6 {[%clk 0:47:12]} 20. Kh2 {[%clk 0:33:10]}  Re6 {[%clk 0:42:39]} 21. c4 {[%clk 0:28:10]}  Nf6 {[%clk 0:30:15]}
22. cxd5 {[%clk 0:24:16]}  Qxc2 {[%clk 0:25:18]} 23. Bxc2 {[%clk 0:24:41]}  Rxe3 {[%clk 0:22:38]} 24. Bd4 {[%clk 0:17:39]}  Nxd5 {[%clk 0:22:36]}
25. Rf2 {[%clk 0:17:04]}  Ree8 {[%clk 0:21:50]} 26. Bxa7 {[%clk 0:15:00]}  Nb4 {[%clk 0:13:01]} 27. Bd1 {[%clk 0:10:57]}  Bc6 {[%clk 0:10:54]}
28. a5 {[%clk 0:07:09]}  Ra8 {[%clk 0:08:17]} 29. Bd4 {[%clk 0:05:19]}  Nd3 {[%clk 0:08:01]} 30. Rf1 {[%clk 0:04:36]}  Re4 {[%clk 0:08:23]}
31. Bc3 {[%clk 0:04:17]}  Rc4 {[%clk 0:03:22]} 1/2-1/2